{"text_format":"1","workbook":"xlsx","n_sheets":5,"sheets":["ReadMe","★프로젝트등록","프로젝트분야","스킬목록","행정구역"],"not_rendered":{"charts":0,"images":0,"macros":1,"external_links":0,"defined_names":18,"comments":0,"pivot_tables":0},"unopened":[],"bounds":{"document_bytes":16777216,"sheet_cells":100000,"rows_first":2000,"rows_last":500,"rows_between":2000,"halvings":0,"cell_chars":16384,"cell_head_chars":4096},"cells_cut":0,"cells_raw":0,"read":"whole","date_system":"1900"}

{"sheet":"ReadMe","index":0,"n_rows":34,"n_cols":2,"rows_kept":34,"cut":false,"hidden":false,"merged":[]}
["📘 프로젝트 일괄등록 양식 사용 가이드"]
[]
["✅ 기본 안내"]
[]
["• ‘프로젝트등록’ 시트에 한 행당 하나의 프로젝트를 입력하세요."]
["• 모집정보는 최대 5세트, 최소 1세트 필수입니다."]
["• 스킬은 스킬목록 시트를, 프로젝트 분야는 프로젝트분야 시트를 참고하세요."]
["• 필수 입력 항목은 컬럼명이 노란색 배경 또는 * 표시로 구분됩니다."]
["• 드롭다운(데이터 유효성) 목록 외 값은 직접 입력하지 마세요."]
["• 모든 입력이 완료되면 파일 확장자를 .xlsx로 유지하여 업로드하세요."]
[]
["🗂️ 시트 구성"]
[]
["시트명","설명"]
["README","파일 사용 가이드"]
["★프로젝트등록","프로젝트 등록용 메인 시트"]
["스킬목록","기술 스펙 목록 (드롭다운 참조용)"]
["프로젝트분야","분야 선택용 목록 (드롭다운 참조용)"]
[]
[]
["⚙️ 주요 기능"]
["드롭다운 선택형 입력"]
["스킬 및 프로젝트 분야는 드롭다운 목록으로 선택 가능합니다."]
["다중 선택 지원 (스킬)"]
["스킬 항목은 여러 개 선택이 가능합니다."]
["이미 선택된 스킬을 다시 선택하면 자동으로 제거됩니다."]
["자동 유효성 검사"]
["필수 항목 누락 또는 잘못된 값 입력 시 경고가 표시됩니다."]
[]
["⚠️ 유의사항"]
[]
["매크로 기능이 포함되어 있으므로, 파일을 열 때 **“콘텐츠 사용(매크로 사용)”**을 눌러야 정상 작동합니다."]
["숨겨진 셀이나 잠금된 컬럼은 수식 계산용으로, 직접 수정하지 마세요."]
["모든 항목은 업로드 전 필수값, 날짜 형식, 드롭다운 항목을 반드시 확인해주세요."]

{"sheet":"★프로젝트등록","index":1,"n_rows":101,"n_cols":51,"rows_kept":101,"cut":false,"hidden":false,"merged":[]}
["*프로젝트분야","분야ID","*구분","*프로젝트명","*형태","*근무형태","지역","시/군/구","최소예산(만원)","최대예산(만원)","예산협의가능여부","시작일","마감일","일정협의가능여부","모집마감일","긴급모집여부","지원자 수 비공개여부","상세내용","필요산출물","필요기술스펙","스펙ID","*모집직무1","*최소경력1","*필요등급1","*자격등급1","*모집인원1","*인원무제한여부","모집직무2","최소경력2","필요등급2","자격등급2","모집인원2","무제한여부2","모집직무3","최소경력3","필요등급3","자격등급3","모집인원3","무제한여부3","모집직무4","최소경력4","필요등급4","자격등급4","모집인원4","무제한여부4","모집직무5","최소경력5","필요등급5","자격등급5","모집인원5","무제한여부5"]
["중개ㆍ매칭 플랫폼",{"$f":"IFERROR(INDEX(프로젝트분야!$C:$C, MATCH(A2, 프로젝트분야!$D:$D, 0)), \"\")","v":"150"},"일반","웹개발 프로젝트","고정비용","재택근무","서울","관악구",600,800,"Y","2025-01-05","2025-12-12","Y","2025-12-04","N","N","본 프로젝트는 사용자의 거래 내역을 자동으로 분류하고 통계 리포트를 제공하는 시스템을 구축하는 것입니다. 사용자는 자신의 지출 패턴을 쉽게 파악할 수 있으며, 이를 통해 효율적인 자금 관리가 가능할 것입니다. 프로젝트에 참여하는 DESIGNER는 직관적이고 사용자 친화적인 UI/UX를 설계하여 서비스의 품질을 높여야 합니다. 또한 사용자의 니즈를 파악하고 이를 반영한 디자인을 구현해야 합니다.","없음","Next.js",8,"무관","10년이상","-","-",3,"Y"]
["ChatGPTㆍ챗봇",{"$f":"IFERROR(INDEX(프로젝트분야!$C:$C, MATCH(A3, 프로젝트분야!$D:$D, 0)), \"\")","v":"178"},"인력매칭","UI디자인 프로젝트","월단가","상주근무","경기","고양시 일산서구",1000,1000,"N","2025-09-21","2025-10-10","N","2025-10-01","N","Y","목적: Toyata Telematics Phase2 과제 협업 개발\n기간: 2025.11월3일 ~ 2026. 7월\n과제 참여 업체: Toyata(JP), TMKR, U+, EnGIS Tech(PM),오큐브(우현테크와 협업)\n근무지: 상주 개발(서울 EnGIS 성수동 본사)\n겅력 : 실경력 5년이상~\n우현테크 투입인력 : 7 ~ 10명\n필요 기술: FE : VueJS 3, NodeJS 20 / BE : Spring Boot, Java, MSA / DB : Postgre SQL / AWS Cloud","화면설계서, 기능설계서","React, Next.js, HTML5","1,8,9","SW개발자","5년이상","중급","기능사",1,"N","AI개발자","무관","초급","-",2,"N"]
[null,{"$f":"IFERROR(INDEX(프로젝트분야!$C:$C, MATCH(A4, 프로젝트분야!$D:$D, 0)), \"\")","v":""}]
[null,{"$f":"IFERROR(INDEX(프로젝트분야!$C:$C, MATCH(A5, 프로젝트분야!$D:$D, 0)), \"\")","v":""}]
[null,{"$f":"IFERROR(INDEX(프로젝트분야!$C:$C, MATCH(A6, 프로젝트분야!$D:$D, 0)), \"\")","v":""}]
[null,{"$f":"IFERROR(INDEX(프로젝트분야!$C:$C, MATCH(A7, 프로젝트분야!$D:$D, 0)), \"\")","v":""}]
[null,{"$f":"IFERROR(INDEX(프로젝트분야!$C:$C, MATCH(A8, 프로젝트분야!$D:$D, 0)), \"\")","v":""}]
[null,{"$f":"IFERROR(INDEX(프로젝트분야!$C:$C, MATCH(A9, 프로젝트분야!$D:$D, 0)), \"\")","v":""}]
[null,{"$f":"IFERROR(INDEX(프로젝트분야!$C:$C, MATCH(A10, 프로젝트분야!$D:$D, 0)), \"\")","v":""}]
[null,{"$f":"IFERROR(INDEX(프로젝트분야!$C:$C, MATCH(A11, 프로젝트분야!$D:$D, 0)), \"\")","v":""}]
[null,{"$f":"IFERROR(INDEX(프로젝트분야!$C:$C, MATCH(A12, 프로젝트분야!$D:$D, 0)), \"\")","v":""}]
[null,{"$f":"IFERROR(INDEX(프로젝트분야!$C:$C, MATCH(A13, 프로젝트분야!$D:$D, 0)), \"\")","v":""}]
[null,{"$f":"IFERROR(INDEX(프로젝트분야!$C:$C, MATCH(A14, 프로젝트분야!$D:$D, 0)), \"\")","v":""}]
[null,{"$f":"IFERROR(INDEX(프로젝트분야!$C:$C, MATCH(A15, 프로젝트분야!$D:$D, 0)), \"\")","v":""}]
[null,{"$f":"IFERROR(INDEX(프로젝트분야!$C:$C, MATCH(A16, 프로젝트분야!$D:$D, 0)), \"\")","v":""}]
[null,{"$f":"IFERROR(INDEX(프로젝트분야!$C:$C, MATCH(A17, 프로젝트분야!$D:$D, 0)), \"\")","v":""}]
[null,{"$f":"IFERROR(INDEX(프로젝트분야!$C:$C, MATCH(A18, 프로젝트분야!$D:$D, 0)), \"\")","v":""}]
[null,{"$f":"IFERROR(INDEX(프로젝트분야!$C:$C, MATCH(A19, 프로젝트분야!$D:$D, 0)), \"\")","v":""}]
[null,{"$f":"IFERROR(INDEX(프로젝트분야!$C:$C, MATCH(A20, 프로젝트분야!$D:$D, 0)), \"\")","v":""}]
[null,{"$f":"IFERROR(INDEX(프로젝트분야!$C:$C, MATCH(A21, 프로젝트분야!$D:$D, 0)), \"\")","v":""}]
[null,{"$f":"IFERROR(INDEX(프로젝트분야!$C:$C, MATCH(A22, 프로젝트분야!$D:$D, 0)), \"\")","v":""}]
[null,{"$f":"IFERROR(INDEX(프로젝트분야!$C:$C, MATCH(A23, 프로젝트분야!$D:$D, 0)), \"\")","v":""}]
[null,{"$f":"IFERROR(INDEX(프로젝트분야!$C:$C, MATCH(A24, 프로젝트분야!$D:$D, 0)), \"\")","v":""}]
[null,{"$f":"IFERROR(INDEX(프로젝트분야!$C:$C, MATCH(A25, 프로젝트분야!$D:$D, 0)), \"\")","v":""}]
[null,{"$f":"IFERROR(INDEX(프로젝트분야!$C:$C, MATCH(A26, 프로젝트분야!$D:$D, 0)), \"\")","v":""}]
[null,{"$f":"IFERROR(INDEX(프로젝트분야!$C:$C, MATCH(A27, 프로젝트분야!$D:$D, 0)), \"\")","v":""}]
[null,{"$f":"IFERROR(INDEX(프로젝트분야!$C:$C, MATCH(A28, 프로젝트분야!$D:$D, 0)), \"\")","v":""}]
[null,{"$f":"IFERROR(INDEX(프로젝트분야!$C:$C, MATCH(A29, 프로젝트분야!$D:$D, 0)), \"\")","v":""}]
[null,{"$f":"IFERROR(INDEX(프로젝트분야!$C:$C, MATCH(A30, 프로젝트분야!$D:$D, 0)), \"\")","v":""}]
[null,{"$f":"IFERROR(INDEX(프로젝트분야!$C:$C, MATCH(A31, 프로젝트분야!$D:$D, 0)), \"\")","v":""}]
[null,{"$f":"IFERROR(INDEX(프로젝트분야!$C:$C, MATCH(A32, 프로젝트분야!$D:$D, 0)), \"\")","v":""}]
[null,{"$f":"IFERROR(INDEX(프로젝트분야!$C:$C, MATCH(A33, 프로젝트분야!$D:$D, 0)), \"\")","v":""}]
[null,{"$f":"IFERROR(INDEX(프로젝트분야!$C:$C, MATCH(A34, 프로젝트분야!$D:$D, 0)), \"\")","v":""}]
[null,{"$f":"IFERROR(INDEX(프로젝트분야!$C:$C, MATCH(A35, 프로젝트분야!$D:$D, 0)), \"\")","v":""}]
[null,{"$f":"IFERROR(INDEX(프로젝트분야!$C:$C, MATCH(A36, 프로젝트분야!$D:$D, 0)), \"\")","v":""}]
[null,{"$f":"IFERROR(INDEX(프로젝트분야!$C:$C, MATCH(A37, 프로젝트분야!$D:$D, 0)), \"\")","v":""}]
[null,{"$f":"IFERROR(INDEX(프로젝트분야!$C:$C, MATCH(A38, 프로젝트분야!$D:$D, 0)), \"\")","v":""}]
[null,{"$f":"IFERROR(INDEX(프로젝트분야!$C:$C, MATCH(A39, 프로젝트분야!$D:$D, 0)), \"\")","v":""}]
[null,{"$f":"IFERROR(INDEX(프로젝트분야!$C:$C, MATCH(A40, 프로젝트분야!$D:$D, 0)), \"\")","v":""}]
[null,{"$f":"IFERROR(INDEX(프로젝트분야!$C:$C, MATCH(A41, 프로젝트분야!$D:$D, 0)), \"\")","v":""}]
[null,{"$f":"IFERROR(INDEX(프로젝트분야!$C:$C, MATCH(A42, 프로젝트분야!$D:$D, 0)), \"\")","v":""}]
[null,{"$f":"IFERROR(INDEX(프로젝트분야!$C:$C, MATCH(A43, 프로젝트분야!$D:$D, 0)), \"\")","v":""}]
[null,{"$f":"IFERROR(INDEX(프로젝트분야!$C:$C, MATCH(A44, 프로젝트분야!$D:$D, 0)), \"\")","v":""}]
[null,{"$f":"IFERROR(INDEX(프로젝트분야!$C:$C, MATCH(A45, 프로젝트분야!$D:$D, 0)), \"\")","v":""}]
[null,{"$f":"IFERROR(INDEX(프로젝트분야!$C:$C, MATCH(A46, 프로젝트분야!$D:$D, 0)), \"\")","v":""}]
[null,{"$f":"IFERROR(INDEX(프로젝트분야!$C:$C, MATCH(A47, 프로젝트분야!$D:$D, 0)), \"\")","v":""}]
[null,{"$f":"IFERROR(INDEX(프로젝트분야!$C:$C, MATCH(A48, 프로젝트분야!$D:$D, 0)), \"\")","v":""}]
[null,{"$f":"IFERROR(INDEX(프로젝트분야!$C:$C, MATCH(A49, 프로젝트분야!$D:$D, 0)), \"\")","v":""}]
[null,{"$f":"IFERROR(INDEX(프로젝트분야!$C:$C, MATCH(A50, 프로젝트분야!$D:$D, 0)), \"\")","v":""}]
[null,{"$f":"IFERROR(INDEX(프로젝트분야!$C:$C, MATCH(A51, 프로젝트분야!$D:$D, 0)), \"\")","v":""}]
[null,{"$f":"IFERROR(INDEX(프로젝트분야!$C:$C, MATCH(A52, 프로젝트분야!$D:$D, 0)), \"\")","v":""}]
[null,{"$f":"IFERROR(INDEX(프로젝트분야!$C:$C, MATCH(A53, 프로젝트분야!$D:$D, 0)), \"\")","v":""}]
[null,{"$f":"IFERROR(INDEX(프로젝트분야!$C:$C, MATCH(A54, 프로젝트분야!$D:$D, 0)), \"\")","v":""}]
[null,{"$f":"IFERROR(INDEX(프로젝트분야!$C:$C, MATCH(A55, 프로젝트분야!$D:$D, 0)), \"\")","v":""}]
[null,{"$f":"IFERROR(INDEX(프로젝트분야!$C:$C, MATCH(A56, 프로젝트분야!$D:$D, 0)), \"\")","v":""}]
[null,{"$f":"IFERROR(INDEX(프로젝트분야!$C:$C, MATCH(A57, 프로젝트분야!$D:$D, 0)), \"\")","v":""}]
[null,{"$f":"IFERROR(INDEX(프로젝트분야!$C:$C, MATCH(A58, 프로젝트분야!$D:$D, 0)), \"\")","v":""}]
[null,{"$f":"IFERROR(INDEX(프로젝트분야!$C:$C, MATCH(A59, 프로젝트분야!$D:$D, 0)), \"\")","v":""}]
[null,{"$f":"IFERROR(INDEX(프로젝트분야!$C:$C, MATCH(A60, 프로젝트분야!$D:$D, 0)), \"\")","v":""}]
[null,{"$f":"IFERROR(INDEX(프로젝트분야!$C:$C, MATCH(A61, 프로젝트분야!$D:$D, 0)), \"\")","v":""}]
[null,{"$f":"IFERROR(INDEX(프로젝트분야!$C:$C, MATCH(A62, 프로젝트분야!$D:$D, 0)), \"\")","v":""}]
[null,{"$f":"IFERROR(INDEX(프로젝트분야!$C:$C, MATCH(A63, 프로젝트분야!$D:$D, 0)), \"\")","v":""}]
[null,{"$f":"IFERROR(INDEX(프로젝트분야!$C:$C, MATCH(A64, 프로젝트분야!$D:$D, 0)), \"\")","v":""}]
[null,{"$f":"IFERROR(INDEX(프로젝트분야!$C:$C, MATCH(A65, 프로젝트분야!$D:$D, 0)), \"\")","v":""}]
[null,{"$f":"IFERROR(INDEX(프로젝트분야!$C:$C, MATCH(A66, 프로젝트분야!$D:$D, 0)), \"\")","v":""}]
[null,{"$f":"IFERROR(INDEX(프로젝트분야!$C:$C, MATCH(A67, 프로젝트분야!$D:$D, 0)), \"\")","v":""}]
[null,{"$f":"IFERROR(INDEX(프로젝트분야!$C:$C, MATCH(A68, 프로젝트분야!$D:$D, 0)), \"\")","v":""}]
[null,{"$f":"IFERROR(INDEX(프로젝트분야!$C:$C, MATCH(A69, 프로젝트분야!$D:$D, 0)), \"\")","v":""}]
[null,{"$f":"IFERROR(INDEX(프로젝트분야!$C:$C, MATCH(A70, 프로젝트분야!$D:$D, 0)), \"\")","v":""}]
[null,{"$f":"IFERROR(INDEX(프로젝트분야!$C:$C, MATCH(A71, 프로젝트분야!$D:$D, 0)), \"\")","v":""}]
[null,{"$f":"IFERROR(INDEX(프로젝트분야!$C:$C, MATCH(A72, 프로젝트분야!$D:$D, 0)), \"\")","v":""}]
[null,{"$f":"IFERROR(INDEX(프로젝트분야!$C:$C, MATCH(A73, 프로젝트분야!$D:$D, 0)), \"\")","v":""}]
[null,{"$f":"IFERROR(INDEX(프로젝트분야!$C:$C, MATCH(A74, 프로젝트분야!$D:$D, 0)), \"\")","v":""}]
[null,{"$f":"IFERROR(INDEX(프로젝트분야!$C:$C, MATCH(A75, 프로젝트분야!$D:$D, 0)), \"\")","v":""}]
[null,{"$f":"IFERROR(INDEX(프로젝트분야!$C:$C, MATCH(A76, 프로젝트분야!$D:$D, 0)), \"\")","v":""}]
[null,{"$f":"IFERROR(INDEX(프로젝트분야!$C:$C, MATCH(A77, 프로젝트분야!$D:$D, 0)), \"\")","v":""}]
[null,{"$f":"IFERROR(INDEX(프로젝트분야!$C:$C, MATCH(A78, 프로젝트분야!$D:$D, 0)), \"\")","v":""}]
[null,{"$f":"IFERROR(INDEX(프로젝트분야!$C:$C, MATCH(A79, 프로젝트분야!$D:$D, 0)), \"\")","v":""}]
[null,{"$f":"IFERROR(INDEX(프로젝트분야!$C:$C, MATCH(A80, 프로젝트분야!$D:$D, 0)), \"\")","v":""}]
[null,{"$f":"IFERROR(INDEX(프로젝트분야!$C:$C, MATCH(A81, 프로젝트분야!$D:$D, 0)), \"\")","v":""}]
[null,{"$f":"IFERROR(INDEX(프로젝트분야!$C:$C, MATCH(A82, 프로젝트분야!$D:$D, 0)), \"\")","v":""}]
[null,{"$f":"IFERROR(INDEX(프로젝트분야!$C:$C, MATCH(A83, 프로젝트분야!$D:$D, 0)), \"\")","v":""}]
[null,{"$f":"IFERROR(INDEX(프로젝트분야!$C:$C, MATCH(A84, 프로젝트분야!$D:$D, 0)), \"\")","v":""}]
[null,{"$f":"IFERROR(INDEX(프로젝트분야!$C:$C, MATCH(A85, 프로젝트분야!$D:$D, 0)), \"\")","v":""}]
[null,{"$f":"IFERROR(INDEX(프로젝트분야!$C:$C, MATCH(A86, 프로젝트분야!$D:$D, 0)), \"\")","v":""}]
[null,{"$f":"IFERROR(INDEX(프로젝트분야!$C:$C, MATCH(A87, 프로젝트분야!$D:$D, 0)), \"\")","v":""}]
[null,{"$f":"IFERROR(INDEX(프로젝트분야!$C:$C, MATCH(A88, 프로젝트분야!$D:$D, 0)), \"\")","v":""}]
[null,{"$f":"IFERROR(INDEX(프로젝트분야!$C:$C, MATCH(A89, 프로젝트분야!$D:$D, 0)), \"\")","v":""}]
[null,{"$f":"IFERROR(INDEX(프로젝트분야!$C:$C, MATCH(A90, 프로젝트분야!$D:$D, 0)), \"\")","v":""}]
[null,{"$f":"IFERROR(INDEX(프로젝트분야!$C:$C, MATCH(A91, 프로젝트분야!$D:$D, 0)), \"\")","v":""}]
[null,{"$f":"IFERROR(INDEX(프로젝트분야!$C:$C, MATCH(A92, 프로젝트분야!$D:$D, 0)), \"\")","v":""}]
[null,{"$f":"IFERROR(INDEX(프로젝트분야!$C:$C, MATCH(A93, 프로젝트분야!$D:$D, 0)), \"\")","v":""}]
[null,{"$f":"IFERROR(INDEX(프로젝트분야!$C:$C, MATCH(A94, 프로젝트분야!$D:$D, 0)), \"\")","v":""}]
[null,{"$f":"IFERROR(INDEX(프로젝트분야!$C:$C, MATCH(A95, 프로젝트분야!$D:$D, 0)), \"\")","v":""}]
[null,{"$f":"IFERROR(INDEX(프로젝트분야!$C:$C, MATCH(A96, 프로젝트분야!$D:$D, 0)), \"\")","v":""}]
[null,{"$f":"IFERROR(INDEX(프로젝트분야!$C:$C, MATCH(A97, 프로젝트분야!$D:$D, 0)), \"\")","v":""}]
[null,{"$f":"IFERROR(INDEX(프로젝트분야!$C:$C, MATCH(A98, 프로젝트분야!$D:$D, 0)), \"\")","v":""}]
[null,{"$f":"IFERROR(INDEX(프로젝트분야!$C:$C, MATCH(A99, 프로젝트분야!$D:$D, 0)), \"\")","v":""}]
[null,{"$f":"IFERROR(INDEX(프로젝트분야!$C:$C, MATCH(A100, 프로젝트분야!$D:$D, 0)), \"\")","v":""}]
[null,{"$f":"IFERROR(INDEX(프로젝트분야!$C:$C, MATCH(A101, 프로젝트분야!$D:$D, 0)), \"\")","v":""}]

{"sheet":"프로젝트분야","index":2,"n_rows":80,"n_cols":4,"rows_kept":80,"cut":false,"hidden":true,"merged":[]}
[null,"표시용","id","(유효성용숨김)"]
[null,"[대분류] IT 서비스 구축","1"]
[null," - 중개ㆍ매칭 플랫폼","150","중개ㆍ매칭 플랫폼"]
[null," - SaaSㆍ솔루션","151","SaaSㆍ솔루션"]
[null," - 가상화폐ㆍ거래소","152","가상화폐ㆍ거래소"]
[null," - 그래픽ㆍ미디어","153","그래픽ㆍ미디어"]
[null," - VRㆍARㆍMR","154","VRㆍARㆍMR"]
[null," - 커뮤니티ㆍSNS","155","커뮤니티ㆍSNS"]
[null," - POSㆍ키오스크","156","POSㆍ키오스크"]
[null," - 관제ㆍ모니터링","157","관제ㆍ모니터링"]
[null," - IoTㆍ블루투스","158","IoTㆍ블루투스"]
[null," - LMSㆍ강의 플랫폼","159","LMSㆍ강의 플랫폼"]
[null," - 병원ㆍ헬스케어","160","병원ㆍ헬스케어"]
[null," - 통계ㆍ대시보드","161","통계ㆍ대시보드"]
[null," - 게임ㆍ리워드","162","게임ㆍ리워드"]
[null," - 기타(IT 서비스 구축)","163","기타(IT 서비스 구축)"]
[null,"[대분류] 내부 업무시스템","2"]
[null," - CRM 고객관리","164","CRM 고객관리"]
[null," - ERP 전사자원관리","165","ERP 전사자원관리"]
[null," - 데이터 분석ㆍBI","166","데이터 분석ㆍBI"]
[null," - SCM 공급망관리","167","SCM 공급망관리"]
[null," - 통합물류시스템","168","통합물류시스템"]
[null," - 재고ㆍ창고ㆍPDA","169","재고ㆍ창고ㆍPDA"]
[null," - GW(그룹웨어)","170","GW(그룹웨어)"]
[null," - PMS Project 관리","171","PMS Project 관리"]
[null," - PPS 생산계획관리","172","PPS 생산계획관리"]
[null," - 업무자동화ㆍRPA","173","업무자동화ㆍRPA"]
[null," - 엑셀 VBAㆍ매크로","174","엑셀 VBAㆍ매크로"]
[null," - 스크래핑ㆍAPI","175","스크래핑ㆍAPI"]
[null," - 기타(내부 시스템)","176","기타(내부 시스템)"]
[null,"[대분류] AIㆍ머신러닝","3"]
[null," - Gen AI 서비스","177","Gen AI 서비스"]
[null," - ChatGPTㆍ챗봇","178","ChatGPTㆍ챗봇"]
[null," - LLM 구축","179","LLM 구축"]
[null," - AI 모델 구축","180","AI 모델 구축"]
[null," - 머신러닝ㆍ딥러닝","181","머신러닝ㆍ딥러닝"]
[null," - 기타(AIㆍ머신러닝)","182","기타(AIㆍ머신러닝)"]
[null,"[대분류] 커머스ㆍ쇼핑몰","4"]
[null," - 자사몰 구축","183","자사몰 구축"]
[null," - 입점몰 구축","184","입점몰 구축"]
[null," - 오픈마켓 연동","185","오픈마켓 연동"]
[null," - 커머스 이전ㆍ확장","186","커머스 이전ㆍ확장"]
[null," - 모바일 커머스","187","모바일 커머스"]
[null," - 라이브 커머스","188","라이브 커머스"]
[null," - 내부 시스템 연동","189","내부 시스템 연동"]
[null," - 솔루션 최적화","190","솔루션 최적화"]
[null," - 기타(커머스ㆍ쇼핑몰)","191","기타(커머스ㆍ쇼핑몰)"]
[null,"[대분류] 웹사이트 제작","5"]
[null," - 홈페이지ㆍ게시판","192","홈페이지ㆍ게시판"]
[null," - 퍼블리싱ㆍ반응형","193","퍼블리싱ㆍ반응형"]
[null," - 랜딩ㆍ소개 페이지","194","랜딩ㆍ소개 페이지"]
[null," - 마케팅 페이지","195","마케팅 페이지"]
[null," - 워드프레스 구축","196","워드프레스 구축"]
[null," - 기타(웹사이트 구축)","197","기타(웹사이트 구축)"]
[null,"[대분류] 클라우드 도입","6"]
[null," - CSP 인프라 이전","198","CSP 인프라 이전"]
[null," - 데이터 이전","199","데이터 이전"]
[null," - Cloud 앱 최적화","200","Cloud 앱 최적화"]
[null," - 아키텍처 컨설팅","201","아키텍처 컨설팅"]
[null," - 기타(클라우드)","202","기타(클라우드)"]
[null,"[대분류] 컨설팅ㆍPMO","7"]
[null," - 기술 자문ㆍ가이드","203","기술 자문ㆍ가이드"]
[null," - 프로젝트 관리","204","프로젝트 관리"]
[null," - 인증ㆍ자격 컨설팅","205","인증ㆍ자격 컨설팅"]
[null," - BIㆍDA 데이터","206","BIㆍDA 데이터"]
[null," - ISP 정보화 전략","207","ISP 정보화 전략"]
[null," - PI 프로세스 혁신","208","PI 프로세스 혁신"]
[null," - DX 디지털 전환","209","DX 디지털 전환"]
[null," - AX AI 접목ㆍ전환","210","AX AI 접목ㆍ전환"]
[null," - 기타(컨설팅ㆍPMO)","211","기타(컨설팅ㆍPMO)"]
[null,"[대분류] 유지보수ㆍ운영","8"]
[null," - 커머스ㆍ쇼핑몰 운영","212","커머스ㆍ쇼핑몰 운영"]
[null," - 네트워크ㆍ서버 운영","213","네트워크ㆍ서버 운영"]
[null," - 내부 시스템 운영","214","내부 시스템 운영"]
[null," - 클라우드 인프라 운영","215","클라우드 인프라 운영"]
[null," - 기타(유지보수ㆍ운영)","216","기타(유지보수ㆍ운영)"]
[null,"[대분류] 기타","9"]
[null," - 기획서ㆍ제안서 등","217","기획서ㆍ제안서 등"]
[null," - 그래픽ㆍ영상 등","218","그래픽ㆍ영상 등"]
[null," - 기타","219","기타"]

{"sheet":"스킬목록","index":3,"n_rows":176,"n_cols":4,"rows_kept":176,"cut":false,"hidden":true,"merged":[]}
[null,"표시용","id","(유효성용숨김)"]
[null,"[대분류] 프론트엔드"]
[null," - React","1","React"]
[null," - Next.js","8","Next.js"]
[null," - HTML5","9","HTML5"]
[null," - CSS3","10","CSS3"]
[null," - JavaScript (ES6+)","11","JavaScript (ES6+)"]
[null," - TypeScript","12","TypeScript"]
[null," - Vue.js","13","Vue.js"]
[null," - Angular","14","Angular"]
[null," - Svelte","15","Svelte"]
[null," - jQuery","16","jQuery"]
[null," - Tailwind CSS","17","Tailwind CSS"]
[null," - Bootstrap","18","Bootstrap"]
[null," - Material-UI (MUI)","19","Material-UI (MUI)"]
[null," - Styled-Components","20","Styled-Components"]
[null," - Sass/SCSS","21","Sass/SCSS"]
[null," - Webpack","22","Webpack"]
[null," - Vite","23","Vite"]
[null," - Redux","24","Redux"]
[null," - Zustand","25","Zustand"]
[null," - React Query","26","React Query"]
[null," - Recoil","27","Recoil"]
[null," - MobX","28","MobX"]
[null,"[대분류] 백엔드"]
[null," - Node.js","2","Node.js"]
[null," - Java","3","Java"]
[null," - MySQL","4","MySQL"]
[null," - Python","29","Python"]
[null," - PHP","30","PHP"]
[null," - C#","31","C#"]
[null," - Go (Golang)","32","Go (Golang)"]
[null," - Ruby","33","Ruby"]
[null," - Kotlin","34","Kotlin"]
[null," - Swift (Server-side)","35","Swift (Server-side)"]
[null," - Django","36","Django"]
[null," - Flask","37","Flask"]
[null," - Laravel","38","Laravel"]
[null," - Symfony","39","Symfony"]
[null," - Express.js","40","Express.js"]
[null," - NestJS","41","NestJS"]
[null," - Spring Boot","42","Spring Boot"]
[null," - Ruby on Rails","43","Ruby on Rails"]
[null," - ASP.NET Core","44","ASP.NET Core"]
[null," - FastAPI","45","FastAPI"]
[null," - REST API","46","REST API"]
[null," - GraphQL","47","GraphQL"]
[null," - gRPC","48","gRPC"]
[null," - WebSocket","49","WebSocket"]
[null," - PostgreSQL","50","PostgreSQL"]
[null," - Microsoft SQL Server","51","Microsoft SQL Server"]
[null," - Oracle","52","Oracle"]
[null," - MariaDB","53","MariaDB"]
[null," - SQLite","54","SQLite"]
[null," - MongoDB","55","MongoDB"]
[null," - Redis","56","Redis"]
[null," - Elasticsearch","57","Elasticsearch"]
[null," - Cassandra","58","Cassandra"]
[null," - Firebase","59","Firebase"]
[null,"[대분류] 클라우드 & DevOps"]
[null," - AWS","5","AWS"]
[null," - Google Cloud Platform (GCP)","68","Google Cloud Platform (GCP)"]
[null," - Microsoft Azure","69","Microsoft Azure"]
[null," - Naver Cloud Platform","70","Naver Cloud Platform"]
[null," - Firebase Hosting","71","Firebase Hosting"]
[null," - Docker","72","Docker"]
[null," - Kubernetes","73","Kubernetes"]
[null," - Docker Compose","74","Docker Compose"]
[null," - Jenkins","75","Jenkins"]
[null," - GitLab CI/CD","76","GitLab CI/CD"]
[null," - GitHub Actions","77","GitHub Actions"]
[null," - CircleCI","78","CircleCI"]
[null," - Argo CD","79","Argo CD"]
[null," - Terraform","80","Terraform"]
[null," - Ansible","81","Ansible"]
[null," - Grafana","82","Grafana"]
[null," - Prometheus","83","Prometheus"]
[null," - Datadog","84","Datadog"]
[null," - Sentry","85","Sentry"]
[null,"[대분류] 모바일"]
[null," - Swift","60","Swift"]
[null," - Kotlin (Android)","61","Kotlin (Android)"]
[null," - Objective-C","62","Objective-C"]
[null," - Java (Android)","63","Java (Android)"]
[null," - React Native","64","React Native"]
[null," - Flutter","65","Flutter"]
[null," - Xamarin","66","Xamarin"]
[null," - Ionic","67","Ionic"]
[null,"[대분류] 데이터 & AI"]
[null," - R","86","R"]
[null," - TensorFlow","87","TensorFlow"]
[null," - PyTorch","88","PyTorch"]
[null," - Scikit-learn","89","Scikit-learn"]
[null," - Pandas","90","Pandas"]
[null," - NumPy","91","NumPy"]
[null," - Keras","92","Keras"]
[null," - Machine Learning","93","Machine Learning"]
[null," - Deep Learning","94","Deep Learning"]
[null," - Natural Language Processing (NLP)","95","Natural Language Processing (NLP)"]
[null," - Computer Vision","96","Computer Vision"]
[null," - Jupyter Notebook","97","Jupyter Notebook"]
[null," - Apache Spark","98","Apache Spark"]
[null,"[대분류] 디자인"]
[null," - Figma","6","Figma"]
[null," - UI/UX Design","7","UI/UX Design"]
[null," - Adobe XD","99","Adobe XD"]
[null," - Sketch","100","Sketch"]
[null," - Adobe Photoshop","101","Adobe Photoshop"]
[null," - Adobe Illustrator","102","Adobe Illustrator"]
[null," - Zeplin","103","Zeplin"]
[null," - InVision","104","InVision"]
[null," - Protopie","105","Protopie"]
[null," - Graphic Design","106","Graphic Design"]
[null," - Logo Design","107","Logo Design"]
[null," - Illustration","108","Illustration"]
[null," - Branding","109","Branding"]
[null," - 3D Modeling","110","3D Modeling"]
[null," - Blender","111","Blender"]
[null," - Cinema 4D","112","Cinema 4D"]
[null," - Motion Graphics","113","Motion Graphics"]
[null," - Adobe After Effects","114","Adobe After Effects"]
[null," - 테스트","166","테스트"]
[null,"[대분류] 마케팅"]
[null," - Search Engine Optimization (SEO)","115","Search Engine Optimization (SEO)"]
[null," - Search Engine Marketing (SEM)","116","Search Engine Marketing (SEM)"]
[null," - Google Analytics","117","Google Analytics"]
[null," - Content Marketing","118","Content Marketing"]
[null," - Social Media Marketing (SMM)","119","Social Media Marketing (SMM)"]
[null," - Email Marketing","120","Email Marketing"]
[null," - Google Ads","121","Google Ads"]
[null," - Facebook Ads","122","Facebook Ads"]
[null,"[대분류] 기획 & PM"]
[null," - Jira","123","Jira"]
[null," - Slack","124","Slack"]
[null," - Notion","125","Notion"]
[null," - Trello","126","Trello"]
[null," - Asana","127","Asana"]
[null," - Confluence","128","Confluence"]
[null," - Agile","129","Agile"]
[null," - Scrum","130","Scrum"]
[null," - Product Management","131","Product Management"]
[null," - Business Analysis","132","Business Analysis"]
[null," - 서비스 기획","133","서비스 기획"]
[null,"[대분류] CMS & 이커머스"]
[null," - WordPress","134","WordPress"]
[null," - Shopify","135","Shopify"]
[null," - Magento","136","Magento"]
[null," - WooCommerce","137","WooCommerce"]
[null," - Wix","138","Wix"]
[null," - Cafe24","139","Cafe24"]
[null," - GodoMall","140","GodoMall"]
[null,"[대분류] 게임"]
[null," - Unity","141","Unity"]
[null," - Unreal Engine","142","Unreal Engine"]
[null," - C++","143","C++"]
[null," - C# (Unity)","144","C# (Unity)"]
[null,"[대분류] 데스크톱"]
[null," - Electron","145","Electron"]
[null," - WPF (.NET)","146","WPF (.NET)"]
[null," - Windows Forms","147","Windows Forms"]
[null," - Swift (macOS)","148","Swift (macOS)"]
[null," - Qt","149","Qt"]
[null,"[대분류] 신흥 기술"]
[null," - Blockchain","155","Blockchain"]
[null," - Solidity","156","Solidity"]
[null," - Web3.js","157","Web3.js"]
[null," - Ether.js","158","Ether.js"]
[null," - IoT","159","IoT"]
[null," - AR/VR","160","AR/VR"]
[null,"[대분류] 기타"]
[null," - C","150","C"]
[null," - Rust","151","Rust"]
[null," - Dart","152","Dart"]
[null," - Shell Script","153","Shell Script"]
[null," - Git","154","Git"]
[null," - 기타","161","기타"]

{"sheet":"행정구역","index":4,"n_rows":43,"n_cols":17,"rows_kept":43,"cut":false,"hidden":true,"merged":[]}
["서울","부산","대구","인천","광주","대전","울산","세종","경기","강원","충북","충남","전북","전남","경북","경남","제주"]
["강남구","강서구","남구","강화군","광산구","대덕구","남구","세종시","가평군","강릉시","괴산군","계룡시","고창군","강진군","경산시","거제시","서귀포시"]
["강동구","금정구","달서구","계양구","남구","동구","동구",null,"고양시 덕양구","고성군","단양군","공주시","군산시","고흥군","경주시","거창군","제주시"]
["강북구","기장군","달성군","남동구","동구","서구","북구",null,"고양시 일산동구","동해시","보은군","금산군","김제시","곡성군","고령군","고성군"]
["강서구","남구","동구","동구","북구","유성구","울주군",null,"고양시 일산서구","삼척시","영동군","논산시","남원시","광양시","구미시","김해시"]
["관악구","동구","북구","미추홀구","서구","중구","중구",null,"과천시","속초시","옥천군","당진시","무주군","구례군","군위군","남해군"]
["광진구","동래구","서구","부평구",null,null,null,null,"광명시","양구군","음성군","보령시","부안군","나주시","김천시","밀양시"]
["구로구","부산진구","수성구","서구",null,null,null,null,"광주시","양양군","제천시","부여군","순창군","담양군","문경시","사천시"]
["금천구","북구","중구","연수구",null,null,null,null,"구리시","영월군","증평군","서산시","완주군","목포시","봉화군","산청군"]
["노원구","사상구",null,"옹진군",null,null,null,null,"군포시","원주시","진천군","서천군","익산시","무안군","상주시","양산시"]
["도봉구","사하구",null,"중구",null,null,null,null,"김포시","인제군","청주시 상당구","아산시","임실군","보성군","성주군","의령군"]
["동대문구","서구",null,null,null,null,null,null,"남양주시","정선군","청주시 서원구","예산군","장수군","순천시","안동시","진주시"]
["동작구","수영구",null,null,null,null,null,null,"동두천시","철원군","청주시 청원구","천안시 동남구","전주시 덕진구","신안군","영덕군","창녕군"]
["마포구","연제구",null,null,null,null,null,null,"부천시","춘천시","청주시 흥덕구","천안시 서북구","전주시 완산구","여수시","영양군","창원시 마산합포구"]
["서대문구","영도구",null,null,null,null,null,null,"성남시 분당구","태백시","충주시","청양군","정읍시","영광군","영주시","창원시 마산회원구"]
["서초구","중구",null,null,null,null,null,null,"성남시 수정구","평창군",null,"태안군","진안군","영암군","영천시","창원시 성산구"]
["성동구","해운대구",null,null,null,null,null,null,"성남시 중원구","홍천군",null,"홍성군",null,"완도군","예천군","창원시 의창구"]
["성북구",null,null,null,null,null,null,null,"수원시 권선구","화천군",null,null,null,"장성군","울릉군","창원시 진해구"]
["송파구",null,null,null,null,null,null,null,"수원시 영통구","횡성군",null,null,null,"장흥군","울진군","통영시"]
["양천구",null,null,null,null,null,null,null,"수원시 장안구",null,null,null,null,"진도군","의성군","하동군"]
["영등포구",null,null,null,null,null,null,null,"수원시 팔달구",null,null,null,null,"함평군","청도군","함안군"]
["용산구",null,null,null,null,null,null,null,"시흥시",null,null,null,null,"해남군","청송군","함양군"]
["은평구",null,null,null,null,null,null,null,"안산시 단원구",null,null,null,null,"화순군","칠곡군","합천군"]
["종로구",null,null,null,null,null,null,null,"안산시 상록구",null,null,null,null,null,"포항시 남구"]
["중구",null,null,null,null,null,null,null,"안성시",null,null,null,null,null,"포항시 북구"]
["중랑구",null,null,null,null,null,null,null,"안양시 동안구"]
[null,null,null,null,null,null,null,null,"안양시 만안구"]
[null,null,null,null,null,null,null,null,"양주시"]
[null,null,null,null,null,null,null,null,"양평군"]
[null,null,null,null,null,null,null,null,"여주시"]
[null,null,null,null,null,null,null,null,"연천군"]
[null,null,null,null,null,null,null,null,"오산시"]
[null,null,null,null,null,null,null,null,"용인시 기흥구"]
[null,null,null,null,null,null,null,null,"용인시 수지구"]
[null,null,null,null,null,null,null,null,"용인시 처인구"]
[null,null,null,null,null,null,null,null,"의왕시"]
[null,null,null,null,null,null,null,null,"의정부시"]
[null,null,null,null,null,null,null,null,"이천시"]
[null,null,null,null,null,null,null,null,"파주시"]
[null,null,null,null,null,null,null,null,"평택시"]
[null,null,null,null,null,null,null,null,"포천시"]
[null,null,null,null,null,null,null,null,"하남시"]
[null,null,null,null,null,null,null,null,"화성시"]